bitfinex-derivatives/quotes_BTCF0:USTF0_20250720
["timestamp","ask_amount","ask_price","bid_price","bid_amount"]
[1753051490148,0.5653504,117720.0,117710.0,1.63346178]
[1753051490346,0.5653504,117720.0,117710.0,1.46364348]
[1753051490551,0.5653504,117720.0,117710.0,0.70840348]
[1753051490751,0.5653504,117720.0,117710.0,1.32776348]
[1753051491353,0.62596172,117720.0,117710.0,1.32776348]
[1753051491656,0.62596172,117720.0,117710.0,1.37151348]
[1753051491956,0.5653504,117720.0,117710.0,1.20203348]
[1753051492157,0.5653504,117720.0,117710.0,1.00189408]
[1753051492358,0.5653504,117720.0,117710.0,1.20203348]
[1753051492758,0.62596172,117720.0,117710.0,1.20203348]
[1753051493353,0.5653504,117720.0,117710.0,0.3638]
[1753051493555,1.56371348,117720.0,117710.0,0.003]
[1753051493761,1.56371348,117720.0,117710.0,0.62224]
[1753051493953,1.00277408,117720.0,117710.0,0.8223794]
[1753051494155,0.58287008,117720.0,117710.0,0.8346994]
[1753051494354,0.58287008,117720.0,117710.0,1.2713594]
[1753051494555,0.58287008,117720.0,117710.0,1.2693594]
[1753051494855,0.38635008,117720.0,117710.0,1.5615888]
[1753051495060,0.45605008,117720.0,117710.0,1.3614494]
[1753051495260,0.58132008,117720.0,117710.0,1.4426694]
[1753051496650,0.58132008,117720.0,117710.0,1.4436694]
[1753051497258,0.26317618,117720.0,117710.0,1.6134877]
[1753051497464,0.20130968,117720.0,117710.0,1.8136271]
[1753051497762,0.17823968,117720.0,117710.0,1.8136271]
[1753051500660,0.17823968,117720.0,117710.0,1.6134877]
[1753051501164,0.17823968,117720.0,117710.0,1.8136271]
[1753051501361,0.01751968,117720.0,117710.0,1.8136271]
[1753051502065,0.2859372,117740.0,117730.0,0.4045795]
[1753051502363,0.24444132,117740.0,117730.0,3.1203189]
[1753051502665,0.17470132,117740.0,117730.0,3.1203189]
[1753051503459,0.11409,117740.0,117730.0,3.1203189]
[1753051506264,0.398365,117740.0,117730.0,2.13143]
[1753051506463,0.31125,117740.0,117730.0,2.9503694]
[1753051506763,0.31125,117740.0,117730.0,3.1201589]
[1753051507067,0.31125,117740.0,117730.0,3.1201189]
[1753051507068,0.22859,117740.0,117730.0,3.1201189]
[1753051507264,0.19538,117740.0,117730.0,3.1201189]
[1753051507465,0.18383,117740.0,117730.0,3.1201189]
[1753051507667,0.18383,117740.0,117730.0,2.5013589]
[1753051507963,0.18383,117740.0,117730.0,3.1200389]
[1753051511876,0.11409,117740.0,117730.0,3.1200389]
[1753051512574,0.16076,117740.0,117730.0,3.1200389]
[1753051512875,0.18383,117740.0,117730.0,3.1200389]
[1753051516067,0.481025,117740.0,117730.0,3.1141589]
[1753051516276,0.481025,117740.0,117730.0,2.9443694]
[1753051516469,0.481025,117740.0,117730.0,2.3260094]
[1753051516672,0.481025,117740.0,117730.0,3.1141189]
[1753051517073,0.481025,117740.0,117730.0,2.9195395]
[1753051517272,0.481025,117740.0,117730.0,3.1196789]
[1753051517974,0.481025,117740.0,117730.0,2.9498894]
[1753051518174,0.481025,117740.0,117730.0,2.9443294]
[1753051518974,0.5659615,117740.0,117730.0,1.2956894]
[1753051519878,0.5659615,117740.0,117730.0,1.09555]
[1753051520077,0.5659615,117740.0,117730.0,1.2956894]
[1753051521487,0.5659615,117740.0,117730.0,0.6774094]
[1753051521775,0.5659615,117740.0,117730.0,1.2956494]
[1753051525576,0.5659615,117740.0,117730.0,1.3393994]
[1753051525781,0.18383,117740.0,117730.0,1.5837589]
[1753051525984,0.11409,117740.0,117730.0,1.5837589]
[1753051526883,0.16049,117740.0,117730.0,1.5837589]
[1753051527175,0.18539,117740.0,117730.0,1.5837589]
[1753051527979,0.3551651,117740.0,117730.0,1.5837589]
[1753051528186,0.3551651,117740.0,117730.0,0.7957294]
[1753051528481,0.3551651,117740.0,117730.0,1.21375]
[1753051528482,0.4813651,117740.0,117730.0,1.21375]
[1753051528682,0.4813651,117740.0,117730.0,1.4083294]
[1753051528885,0.4813651,117740.0,117730.0,1.40821836]
[1753051530474,0.4813651,117740.0,117730.0,1.41377836]
[1753051530785,0.4813651,117740.0,117730.0,1.21363896]
[1753051530989,0.4813651,117740.0,117730.0,0.79561836]
[1753051531299,0.5663016,117740.0,117730.0,0.59323836]
[1753051531475,0.5663016,117740.0,117730.0,0.97888]
[1753051531782,0.5663016,117740.0,117730.0,1.1790194]
[1753051531982,0.62691292,117740.0,117730.0,1.1790194]
[1753051532190,0.62691292,117740.0,117730.0,1.2226594]
[1753051532389,0.31159,117740.0,117730.0,1.4670189]
[1753051532579,0.18539,117740.0,117730.0,1.4670189]
[1753051533394,0.355165,117740.0,117730.0,1.2972294]
[1753051533593,0.41577632,117740.0,117730.0,1.2972294]
[1753051533888,0.24600132,117740.0,117730.0,1.4670189]
[1753051534878,0.18539,117740.0,117730.0,1.4670189]
[1753051537885,0.3551651,117740.0,117730.0,1.4670189]
[1753051539685,0.3551651,117740.0,117730.0,1.2972294]
[1753051540792,0.3551651,117740.0,117730.0,1.4670189]
[1753051541493,0.3551651,117740.0,117730.0,1.2972294]
[1753051541695,0.24600132,117740.0,117730.0,1.2972294]
[1753051541993,0.18539,117740.0,117730.0,1.4670189]
[1753051543895,0.18539,117740.0,117730.0,1.4680189]
[1753051545194,0.18539,117740.0,117730.0,1.5875089]
[1753051545590,0.18539,117740.0,117730.0,1.5885089]
[1753051546995,0.28415918,117750.0,117740.0,0.407795]
[1753051547189,0.35545918,117750.0,117740.0,0.98794003]
[1753051547793,0.28643337,117750.0,117740.0,0.98794003]
[1753051548792,0.58239397,117750.0,117740.0,0.61246563]
[1753051548999,0.58239397,117750.0,117740.0,1.36123503]
[1753051549394,0.58239397,117750.0,117740.0,1.43024503]
[1753051549696,0.58239397,117750.0,117740.0,1.43580503]
[1753051549899,0.58239397,117750.0,117740.0,1.60558013]
[1753051550297,0.41263337,117750.0,117740.0,1.60558013]
[1753051550895,0.58239397,117750.0,117740.0,1.60558013]
[1753051551091,0.41263337,117750.0,117740.0,1.60558013]
[1753051551297,0.29875337,117750.0,117740.0,1.60558013]
[1753051551498,0.29875337,117750.0,117740.0,1.60550013]
[1753051552098,0.26153337,117750.0,117740.0,1.60550013]
[1753051552806,0.26153337,117750.0,117740.0,1.80563953]
[1753051552807,0.04144205,117750.0,117740.0,1.80563953]
[1753051553099,0.24499132,117760.0,117750.0,0.4022207]
[1753051553297,0.24499132,117760.0,117750.0,0.9687201]
[1753051553897,0.41473752,117760.0,117750.0,0.7989594]
[1753051554096,0.39047848,117760.0,117750.0,0.7989594]
[1753051554303,0.51667848,117760.0,117750.0,0.7989594]
[1753051554499,0.39047848,117760.0,117750.0,0.7989594]
[1753051554896,0.4520898,117760.0,117750.0,0.7989594]
[1753051555603,0.4520898,117760.0,117750.0,0.96872]
[1753051555996,0.4540898,117760.0,117750.0,0.96872]
[1753051556193,0.4540898,117760.0,117750.0,0.7989594]
[1753051557100,0.2843436,117760.0,117750.0,0.9687201]
[1753051557300,0.06991737,117770.0,117760.0,0.4031062]
[1753051557597,0.00221969,117770.0,117760.0,1.781625]
[1753051557799,0.00221969,117770.0,117760.0,1.787185]
[1753051557998,0.11723969,117770.0,117760.0,1.787185]
[1753051558197,0.35735149,117770.0,117760.0,1.787145]
[1753051558397,0.18761969,117770.0,117760.0,1.787145]
[1753051560508,0.22421681,117770.0,117760.0,1.787145]
[1753051562709,0.17802681,117770.0,117760.0,1.787145]
[1753051562910,0.00221969,117770.0,117760.0,1.787145]
[1753051563109,0.1854,117780.0,117770.0,0.4030918]
[1753051563310,0.22109736,117780.0,117770.0,0.9695912]
[1753051563709,0.1854,117780.0,117770.0,0.9695912]
[1753051565313,0.39160952,117780.0,117770.0,0.7998594]
[1753051565512,0.34723212,117780.0,117770.0,1.5867912]
[1753051565710,0.60185718,117780.0,117770.0,0.6816494]
[1753051565904,0.60185718,117780.0,117770.0,1.6596494]
[1753051566109,0.43213978,117780.0,117770.0,1.7032894]
[1753051566302,0.60285718,117780.0,117770.0,1.7722994]
[1753051567012,0.60185718,117780.0,117770.0,1.7722994]
[1753051567216,0.60185718,117780.0,117770.0,1.7752994]
[1753051567910,0.60185718,117780.0,117770.0,1.9450312]
[1753051568414,0.60185718,117780.0,117770.0,1.7752994]
[1753051568614,0.60185718,117780.0,117770.0,1.6626094]
[1753051568824,0.60185718,117780.0,117770.0,0.39686]
[1753051569009,0.60185718,117780.0,117770.0,1.1810994]
[1753051572112,0.60185718,117780.0,117770.0,0.98096]
[1753051572509,0.60185718,117780.0,117770.0,1.1810994]
[1753051572912,0.60185718,117780.0,117770.0,0.5639394]
[1753051573111,1.3934841,117780.0,117770.0,0.003]
[1753051573312,0.4804862,117760.0,117750.0,0.5609394]
[1753051573512,0.4804862,117760.0,117750.0,0.2001394]
[1753051573712,0.4805151,117740.0,117730.0,0.39386]
[1753051573916,0.4805151,117740.0,117730.0,1.2147194]
[1753051574218,0.4805151,117740.0,117730.0,1.4971589]
[1753051574219,0.1854,117740.0,117730.0,1.4971589]
[1753051574417,0.1854,117740.0,117730.0,1.5027189]
[1753051574617,0.1854,117740.0,117730.0,0.9696489]
[1753051574822,0.1854,117740.0,117730.0,1.5910489]
[1753051575115,0.11502,117740.0,117730.0,1.5950489]
[1753051575715,0.11502,117740.0,117730.0,1.3949095]
[1753051575918,0.11502,117740.0,117730.0,1.5980489]
[1753051576117,0.11502,117740.0,117730.0,1.5977289]
[1753051576707,0.3551612,117750.0,117740.0,0.11265]
[1753051576917,0.3551612,117750.0,117740.0,0.9696345]
[1753051577217,0.4520877,117750.0,117740.0,0.7998594]
[1753051577416,0.4520877,117750.0,117740.0,0.9696345]
[1753051577613,0.19739,117750.0,117740.0,0.98871246]
[1753051577916,0.1854,117750.0,117740.0,0.98871246]
[1753051578217,0.1854,117750.0,117740.0,0.99171246]
[1753051578218,0.3551606,117750.0,117740.0,0.99171246]
[1753051579718,0.3551606,117750.0,117740.0,0.82193736]
[1753051580218,0.3551606,117750.0,117740.0,0.99171246]
[1753051580617,0.3551606,117750.0,117740.0,0.82193736]
[1753051580818,0.3671506,117750.0,117740.0,0.82193736]
[1753051581017,0.4805006,117750.0,117740.0,0.82193736]
[1753051581215,0.4805006,117750.0,117740.0,0.62179796]
[1753051581414,0.56542989,117750.0,117740.0,0.52815]
[1753051581715,0.56542989,117750.0,117740.0,0.9461294]
[1753051583018,0.56542989,117750.0,117740.0,0.8272994]
[1753051583220,0.63399007,117750.0,117740.0,0.8272994]
[1753051583618,0.63399007,117750.0,117740.0,0.2031394]
[1753051583824,0.63399007,117750.0,117740.0,0.8272994]
[1753051584015,0.63399007,117750.0,117740.0,0.003]
[1753051584016,0.80384607,117750.0,117740.0,0.003]
[1753051584227,1.36478547,117750.0,117740.0,0.62572]
[1753051584514,1.16464607,117750.0,117740.0,0.62572]
[1753051585022,1.16464607,117750.0,117740.0,0.002]
[1753051585215,0.1697896,117730.0,117720.0,0.3608]
[1753051585415,0.4787296,117730.0,117720.0,0.62336]
[1753051585623,0.4787296,117730.0,117720.0,0.8234994]
[1753051585818,0.92445889,117730.0,117720.0,0.8234994]
[1753051586013,0.92445889,117730.0,117710.0,0.5609394]
[1753051586014,0.2961541,117720.0,117710.0,0.5609394]
[1753051586323,0.4787441,117720.0,117710.0,1.2172694]
[1753051586619,0.56369504,117720.0,117710.0,1.2172694]
[1753051586829,0.56369504,117720.0,117710.0,1.1844194]
[1753051587019,0.56369504,117720.0,117710.0,0.8266194]
[1753051587521,0.296183,117700.0,117690.0,0.37997669]
[1753051587824,0.52104963,117700.0,117690.0,1.1842594]
[1753051588017,0.60600057,117700.0,117690.0,1.1842594]
[1753051588914,0.60600057,117700.0,117690.0,1.1882594]
[1753051589119,0.60600057,117700.0,117690.0,0.6411405]
[1753051589327,0.60600057,117700.0,117690.0,1.2639405]
[1753051589820,0.60600057,117700.0,117690.0,1.2679405]
[1753051590216,0.60600057,117700.0,117690.0,1.03335]
[1753051590422,0.60600057,117700.0,117690.0,1.2679405]
[1753051592424,0.60600057,117700.0,117690.0,1.03335]
[1753051592625,0.60600057,117700.0,117690.0,1.2679405]
[1753051593825,0.60600057,117700.0,117690.0,1.2590405]
[1753051596425,0.60600057,117700.0,117690.0,0.8982405]
[1753051596926,0.60600057,117700.0,117690.0,0.66365]
[1753051597125,0.60600057,117700.0,117690.0,0.8982405]
[1753051597320,0.60600057,117700.0,117690.0,0.6308]
[1753051597522,0.96680057,117700.0,117690.0,0.6308]
[1753051598026,0.96680057,117700.0,117690.0,0.62848]
[1753051598214,0.60600057,117700.0,117690.0,0.8959205]
[1753051598420,0.60600057,117700.0,117690.0,1.0238005]
[1753051598622,0.60600057,117700.0,117690.0,1.3846005]
[1753051599223,0.60600057,117700.0,117690.0,1.15001]
[1753051599422,0.60600057,117700.0,117690.0,1.3846005]
[1753051600426,0.60600057,117700.0,117690.0,1.3409605]
[1753051600723,0.4788307,117660.0,117650.0,0.62472]
[1753051601023,0.2517938,117630.0,117620.0,0.3099305]
[1753051601218,0.3995638,117630.0,117620.0,0.78872]
[1753051601424,0.3995638,117630.0,117620.0,0.4032705]
[1753051601719,0.4788738,117630.0,117620.0,1.0233105]
[1753051601928,0.56388974,117630.0,117620.0,1.0233105]
[1753051602125,0.56388974,117630.0,117620.0,1.0231105]
[1753051602727,0.6070812,117630.0,117620.0,1.0231105]
[1753051603026,0.6070812,117630.0,117620.0,1.1619205]
[1753051603422,0.5601812,117630.0,117620.0,1.1629205]
[1753051604222,0.13569,117640.0,117620.0,0.8874983]
[1753051604423,0.13569,117640.0,117630.0,0.9028805]
[1753051604424,0.42714008,117640.0,117630.0,0.9028805]
[1753051604624,0.51215602,117640.0,117630.0,0.9028805]
[1753051605025,0.51215602,117640.0,117630.0,0.5420805]
[1753051605224,0.29974992,117640.0,117630.0,1.0728143]
[1753051605529,0.06696398,117640.0,117630.0,1.0728143]
[1753051605726,0.2548609,117650.0,117630.0,0.838223]
[1753051606023,0.56949961,117650.0,117640.0,1.1612805]
[1753051606227,0.60190961,117650.0,117640.0,1.1612805]
[1753051606429,0.64880961,117650.0,117640.0,1.1612805]
[1753051607218,0.64880961,117650.0,117640.0,1.5220805]
[1753051607522,0.64880961,117650.0,117640.0,1.5218005]
[1753051607728,0.64980961,117650.0,117640.0,1.5218005]
[1753051608529,0.4788593,117640.0,117630.0,0.78732]
[1753051608927,0.4788593,117640.0,117630.0,0.90681]
[1753051609126,0.56386078,117640.0,117630.0,0.90681]
[1753051609327,0.56386078,117640.0,117630.0,0.90669]
[1753051609528,0.56386078,117640.0,117630.0,1.1412805]
[1753051609724,0.03241,117610.0,117600.0,0.02427]
[1753051609923,0.03241,117610.0,117580.0,0.07130642]
[1753051609924,0.3299316,117590.0,117580.0,0.07130642]
[1753051610124,0.4789461,117580.0,117570.0,0.01197]
[1753051610328,1.0743366,117580.0,117570.0,0.6184]
[1753051610831,1.15938146,117580.0,117570.0,0.6184]
[1753051611031,0.4563105,117570.0,117560.0,0.09334]
[1753051611228,1.051701,117570.0,117560.0,0.78684]
[1753051611429,0.4094105,117570.0,117560.0,0.64897]
[1753051611629,0.90216982,117570.0,117560.0,0.90633]
[1753051611830,0.94527962,117570.0,117560.0,0.90633]
[1753051612134,0.94527962,117570.0,117560.0,0.9306]
[1753051612927,1.20252012,117570.0,117560.0,0.73593]
[1753051613432,1.14426495,117570.0,117560.0,0.62032]
[1753051613832,1.14426495,117570.0,117560.0,0.62332]
[1753051614032,1.14426495,117570.0,117560.0,0.69611]
[1753051614033,0.54887445,117570.0,117560.0,0.69611]
[1753051614228,0.88702445,117570.0,117560.0,0.69611]
[1753051614432,0.88702445,117570.0,117560.0,0.8156]
[1753051614729,0.57705465,117570.0,117560.0,0.93576]
[1753051614932,0.79701465,117570.0,117560.0,0.93576]
[1753051615122,0.06809483,117570.0,117560.0,1.1703505]
[1753051615326,0.7401455,117580.0,117560.0,1.1703505]
[1753051615527,0.7401455,117580.0,117570.0,0.5465105]
[1753051615828,0.74019662,117580.0,117570.0,0.31192]
[1753051616032,0.78350199,117580.0,117570.0,0.31192]
[1753051616234,0.42270199,117580.0,117570.0,0.31192]
[1753051616736,1.18778249,117580.0,117570.0,0.81035]
[1753051617134,0.95319199,117580.0,117570.0,0.81035]
[1753051617433,0.95319199,117580.0,117570.0,0.93036]
[1753051617735,1.02042219,117580.0,117570.0,0.93336]
[1753051618230,1.02042219,117580.0,117570.0,0.81335]
[1753051618733,1.27928269,117580.0,117570.0,0.02761]
[1753051618925,1.27928269,117580.0,117570.0,0.64609]
[1753051619128,1.27928269,117580.0,117570.0,0.02761]
[1753051619329,1.27928269,117580.0,117570.0,0.62148]
[1753051619632,0.367755,117560.0,117550.0,0.70791761]
[1753051619828,0.9631455,117560.0,117550.0,0.70791761]
[1753051620031,0.704285,117560.0,117550.0,0.70791761]
[1753051620231,0.42853709,117560.0,117550.0,1.06251811]
[1753051620437,0.08505209,117560.0,117550.0,0.44403811]
[1753051620729,0.63816957,117580.0,117550.0,1.44522281]
[1753051620936,0.5733318,117570.0,117560.0,0.2592005]
[1753051621135,0.65839836,117570.0,117560.0,0.2592005]
[1753051621436,0.5308257,117570.0,117560.0,0.4252405]
[1753051621637,0.74020502,117570.0,117560.0,0.4252405]
[1753051621836,0.37940502,117570.0,117560.0,0.4252405]
[1753051622234,0.37940502,117570.0,117560.0,0.80921]
[1753051623029,0.42853502,117570.0,117560.0,0.81021]
[1753051624037,0.42853502,117570.0,117560.0,0.81221]
[1753051624737,0.54909502,117570.0,117560.0,0.93148]
[1753051624938,0.54909502,117570.0,117560.0,0.93248]
[1753051629135,1.16875552,117570.0,117560.0,0.03839]
[1753051629334,1.16875552,117570.0,117560.0,0.62056]
[1753051629635,1.35607299,117570.0,117560.0,0.002]
[1753051630737,0.92709249,117570.0,117560.0,0.19391]
[1753051631039,0.95136249,117570.0,117560.0,0.11623]
[1753051632032,1.18595299,117570.0,117560.0,0.01378]
[1753051632237,1.35607299,117570.0,117560.0,0.002]
[1753051635737,1.18595299,117570.0,117560.0,0.002]
[1753051637934,0.95136249,117570.0,117560.0,0.002]
[1753051638140,1.18595299,117570.0,117560.0,0.002]
[1753051639439,1.18595299,117570.0,117560.0,1e-07]
[1753051639642,0.4883294,117550.0,117540.0,0.7307501]
[1753051639939,0.8491294,117550.0,117540.0,0.7307501]
[1753051640333,0.93418872,117550.0,117540.0,0.7307501]
[1753051641142,1.16877922,117550.0,117540.0,0.11423]
[1753051641342,0.2906239,117540.0,117530.0,0.7349708]
[1753051641538,0.8491439,117540.0,117530.0,0.7349708]
[1753051641942,0.9342177,117540.0,117530.0,0.7349708]
[1753051642643,0.9342177,117540.0,117530.0,0.1204508]
[1753051643043,0.9342177,117540.0,117530.0,0.1234508]
[1753051645140,0.9342177,117540.0,117530.0,0.2011308]
[1753051645545,0.3794577,117540.0,117530.0,0.3221708]
[1753051645747,0.3794577,117540.0,117530.0,0.7268397]
[1753051645946,0.2093938,117540.0,117530.0,0.5567613]
[1753051646141,0.2093938,117540.0,117530.0,1.0876397]
[1753051646349,0.3794577,117540.0,117530.0,1.0876397]
[1753051646544,0.3794577,117540.0,117530.0,0.9175613]
[1753051646744,0.2093938,117540.0,117530.0,1.0876397]
[1753051646940,0.2943839,117540.0,117530.0,1.0876397]
[1753051649252,0.2943839,117540.0,117530.0,0.9175613]
[1753051649450,0.2943839,117540.0,117530.0,1.0876397]
[1753051649846,0.11341,117550.0,117540.0,0.1700584]
[1753051650051,0.2834594,117550.0,117540.0,1.1710405]
[1753051650347,0.81915,117560.0,117540.0,1.3836196]
[1753051650550,0.8544982,117560.0,117550.0,0.5526005]
[1753051650852,0.939572,117560.0,117550.0,0.5526005]
[1753051651252,0.971002,117560.0,117550.0,0.5526005]
[1753051651850,0.610202,117560.0,117550.0,0.7226499]
[1753051652054,0.5251796,117560.0,117550.0,0.7236499]
[1753051652448,0.36100818,117570.0,117560.0,0.488045]
[1753051652649,0.36100818,117570.0,117560.0,1.3410355]
[1753051652849,0.38569633,117570.0,117560.0,1.3410355]
[1753051653049,0.38569633,117570.0,117560.0,1.106445]
[1753051653343,0.38569633,117570.0,117560.0,1.1710005]
[1753051653541,0.38569633,117570.0,117560.0,1.3410355]
[1753051653746,0.38569633,117570.0,117560.0,1.3420355]
[1753051655154,0.38569633,117570.0,117560.0,1.1720005]
[1753051655354,0.38569633,117570.0,117560.0,0.93741]
[1753051655756,0.38569633,117570.0,117560.0,1.1720005]
[1753051656754,0.22395687,117580.0,117570.0,0.4880305]
[1753051656946,0.0672302,117580.0,117570.0,1.083421]
[1753051657146,0.18722824,117590.0,117580.0,0.488016]
[1753051657357,0.18722824,117590.0,117580.0,1.7017265]
[1753051657958,0.01723674,117590.0,117580.0,1.7017265]
[1753051658152,0.18722834,117590.0,117580.0,1.7017265]
[1753051658457,0.18922834,117590.0,117580.0,1.7017265]
[1753051659055,0.2564692,117590.0,117580.0,1.7017265]
[1753051659255,0.0864776,117590.0,117580.0,1.7017265]
[1753051659453,0.2574692,117590.0,117580.0,1.7017265]
[1753051659654,0.0874776,117590.0,117580.0,1.7017265]
[1753051659853,0.0864776,117590.0,117580.0,1.7017265]
[1753051660059,0.2564692,117590.0,117580.0,1.8718145]
[1753051660259,0.2554692,117590.0,117580.0,1.8718145]
[1753051660460,0.0854776,117590.0,117580.0,1.8718145]
[1753051660960,0.2554692,117590.0,117580.0,1.8718145]
[1753051661156,0.06824086,117590.0,117580.0,1.8718145]
[1753051661360,0.2833799,117610.0,117600.0,0.4879871]
[1753051661561,0.1699699,117610.0,117600.0,1.7015776]
[1753051662161,0.2882397,117620.0,117610.0,0.4879727]
[1753051662162,0.1699609,117620.0,117610.0,0.4879727]
[1753051662364,0.1699609,117620.0,117610.0,1.0833632]
[1753051662561,0.17378841,117630.0,117620.0,0.4428282]
[1753051662771,0.34310225,117640.0,117630.0,0.4879438]
[1753051663058,0.22969225,117640.0,117630.0,1.0803343]
[1753051663254,0.22879621,117640.0,117630.0,1.0803343]
[1753051663459,0.18721145,117640.0,117630.0,1.0803343]
[1753051664160,0.30062145,117640.0,117630.0,0.93409]
[1753051664360,0.30062145,117640.0,117630.0,1.4648238]
[1753051664556,0.18721145,117640.0,117630.0,1.6994143]
[1753051664756,0.18721145,117640.0,117630.0,1.3386143]
[1753051664952,0.01728535,117640.0,117630.0,1.6994143]
[1753051666061,0.18720465,117640.0,117630.0,0.8487438]
[1753051666365,0.18720465,117640.0,117630.0,1.7013743]
[1753051666568,0.1699193,117640.0,117630.0,1.3385743]
[1753051666753,0.1699193,117640.0,117630.0,0.7225342]
[1753051667063,0.2833293,117640.0,117630.0,1.1058637]
[1753051667263,0.2833293,117640.0,117630.0,1.35933124]
[1753051667462,0.2833293,117640.0,117630.0,1.72013124]
[1753051669157,0.11341,117640.0,117630.0,1.72013124]
[1753051669364,0.4510195,117650.0,117640.0,0.4879293]
[1753051669563,0.4036595,117650.0,117640.0,0.7225198]
[1753051670163,0.4036595,117650.0,117640.0,0.4879293]
[1753051670462,0.4036595,117650.0,117640.0,0.7235198]
[1753051670764,0.4036595,117650.0,117640.0,1.3423598]
[1753051671062,0.3257995,117650.0,117640.0,1.3423598]
[1753051672162,0.3257995,117650.0,117640.0,0.7245198]
[1753051672361,0.3257995,117650.0,117640.0,1.7031598]
[1753051672558,0.11341,117650.0,117640.0,1.7031598]
[1753051672762,0.37224404,117660.0,117650.0,0.4646249]
[1753051672956,0.6629894,117670.0,117660.0,0.1698904]
[1753051673162,0.19127,117670.0,117660.0,1.3402509]
[1753051673357,0.08500148,117670.0,117660.0,1.7010509]
[1753051673555,0.2832749,117680.0,117670.0,0.464596]
[1753051673759,0.1322898,117690.0,117670.0,0.8074126]
[1753051673960,0.5789422,117690.0,117680.0,1.0442305]
[1753051674160,0.66392923,117690.0,117680.0,0.93473]
[1753051674361,0.62146393,117690.0,117680.0,1.1045916]
[1753051674560,0.57899863,117690.0,117680.0,1.1045916]
[1753051675064,0.62108286,117690.0,117680.0,1.1045916]
[1753051675265,0.62108286,117690.0,117680.0,0.93473]
[1753051675465,0.62108286,117690.0,117680.0,1.1045916]
[1753051675768,0.98188286,117690.0,117680.0,0.93173]
[1753051675968,0.62108286,117690.0,117680.0,0.93173]
[1753051676164,0.62108286,117690.0,117680.0,0.93073]
[1753051677168,0.62108286,117690.0,117680.0,0.93173]
[1753051679367,0.36141126,117690.0,117680.0,1.6969821]
[1753051679562,0.15549423,117690.0,117680.0,1.6969821]
[1753051679763,0.32534133,117690.0,117680.0,1.1721205]
[1753051679964,0.32534133,117690.0,117680.0,1.3419821]
[1753051680159,0.12101,117700.0,117690.0,0.3639872]
[1753051680466,0.37581529,117700.0,117690.0,0.66914]
[1753051680765,0.4844072,117690.0,117680.0,0.11413]
[1753051680958,1.0797977,117690.0,117680.0,0.73165]
[1753051681166,1.0797977,117690.0,117680.0,0.03704]
[1753051681470,0.77844758,117690.0,117680.0,0.84585]
[1753051681765,0.3827834,117710.0,117700.0,0.24193]
[1753051681968,0.3757502,117710.0,117700.0,1.1603705]
[1753051682170,0.37581049,117710.0,117700.0,1.3302032]
[1753051682371,0.2908379,117710.0,117700.0,1.1603705]
[1753051682574,1.16475099,117710.0,117700.0,0.81158]
[1753051682770,1.20629547,117710.0,117700.0,0.81158]
[1753051682964,1.20629547,117710.0,117700.0,0.72957]
[1753051683467,0.4843927,117700.0,117680.0,0.04572]
[1753051683666,0.6960477,117690.0,117680.0,0.03548001]
[1753051683866,1.0797977,117690.0,117680.0,0.05814001]
[1753051684063,1.16475585,117690.0,117680.0,0.67930001]
[1753051684267,0.90721535,117690.0,117680.0,0.90688001]
[1753051684463,0.90721535,117690.0,117680.0,1.14147051]
[1753051684666,0.73661535,117690.0,117680.0,1.31133211]
[1753051684868,0.2908572,117690.0,117680.0,1.14147051]
[1753051685073,0.78611979,117690.0,117680.0,0.90688001]
[1753051685573,0.78611979,117690.0,117680.0,0.90988001]
[1753051685776,0.93017979,117690.0,117680.0,0.6592]
[1753051686667,0.93017979,117690.0,117680.0,0.6602]
[1753051688784,0.93017979,117690.0,117680.0,0.70448]
[1753051689775,0.93017979,117690.0,117680.0,0.81786]
[1753051690376,0.90722979,117690.0,117680.0,0.81786]
[1753051691574,0.90722979,117690.0,117680.0,0.81742]
[1753051691982,0.90722979,117690.0,117680.0,0.81762]
[1753051692181,0.93017979,117690.0,117680.0,0.81762]
[1753051692570,1.16477029,117690.0,117680.0,0.62348]
[1753051693170,1.78401029,117690.0,117680.0,0.004]
[1753051694779,1.8443887,117690.0,117680.0,0.004]
[1753051697380,0.4844792,117640.0,117630.0,0.02268544]
[1753051697577,0.3140081,117620.0,117610.0,0.1889786]
[1753051697782,0.8453081,117620.0,117610.0,0.2833686]
[1753051698079,0.97368449,117620.0,117610.0,0.2833686]
[1753051698277,0.61288449,117620.0,117610.0,0.2833686]
[1753051698478,0.97368449,117620.0,117610.0,0.5179591]
[1753051698984,0.97368449,117620.0,117610.0,0.5209591]
[1753051699379,0.97368449,117620.0,117610.0,1.1405191]
[1753051699580,0.97368449,117620.0,117610.0,1.1631791]
[1753051699986,0.97368449,117620.0,117610.0,1.1641791]
[1753051700578,0.61288449,117620.0,117610.0,1.1641791]
[1753051700785,0.38796681,117620.0,117610.0,1.5249791]
[1753051701086,0.38796681,117620.0,117610.0,1.1641791]
[1753051701480,0.43745681,117620.0,117610.0,1.1641791]
[1753051702483,0.46040681,117620.0,117610.0,1.1641791]
[1753051704790,0.56951681,117620.0,117610.0,1.1641791]
[1753051705395,0.63645554,117620.0,117610.0,1.5249791]
[1753051705698,0.23688693,117620.0,117610.0,1.6949417]
[1753051706796,0.23688693,117620.0,117610.0,1.8649897]
[1753051706990,0.1699482,117620.0,117610.0,1.8649897]
[1753051708404,0.2920293,117640.0,117630.0,0.4919437]
[1753051708604,0.1699193,117640.0,117630.0,1.7100542]
[1753051708902,0.1699193,117640.0,117630.0,1.9650343]
[1753051709197,0.27230371,117650.0,117640.0,0.32201]
[1753051709399,0.01743211,117650.0,117640.0,1.0873198]
[1753051709598,0.18733691,117650.0,117640.0,1.25631979]
[1753051709797,0.18733691,117650.0,117640.0,1.0863198]
[1753051709998,0.01743211,117650.0,117640.0,1.0853198]
[1753051710194,0.2525445,117670.0,117650.0,0.4091049]
[1753051710501,0.25488478,117670.0,117660.0,1.7096509]
[1753051710700,0.1698833,117670.0,117660.0,1.7096509]
[1753051710900,0.3769218,117680.0,117670.0,0.491886]
[1753051711102,0.2773195,117690.0,117680.0,0.1698615]
[1753051711292,0.4764817,117690.0,117680.0,1.5418005]
[1753051711493,0.56147235,117690.0,117680.0,1.5418005]
[1753051711703,0.58626235,117690.0,117680.0,1.5418005]
[1753051712001,0.57916327,117690.0,117680.0,0.9174005]
[1753051712303,0.65575725,117690.0,117680.0,1.5416005]
[1753051712804,0.65575725,117690.0,117680.0,1.5419205]
[1753051713207,0.65575725,117690.0,117680.0,1.5439205]
[1753051713502,0.57082775,117690.0,117680.0,1.713782]
[1753051713703,0.37619065,117690.0,117680.0,1.713782]
[1753051713904,0.21874065,117690.0,117680.0,1.713782]
[1753051714399,0.21455601,117700.0,117690.0,0.491857]
[1753051714594,0.38438861,117700.0,117690.0,1.0872475]
[1753051714796,0.27926628,117700.0,117690.0,1.0872475]
[1753051715007,0.44909888,117700.0,117690.0,1.0872475]
[1753051715808,0.36412629,117700.0,117690.0,1.0872475]